bitfinex/quotes_BTCUSD_20240820
["timestamp","ask_amount","ask_price","bid_price","bid_amount"]
[1724149679934,0.001826,60863.0,60862.0,0.67983395]
[1724149680608,0.004826,60863.0,60862.0,0.67983395]
[1724149681282,0.004826,60863.0,60862.0,0.6591306]
[1724149681406,0.004826,60863.0,60862.0,0.71602253]
[1724149681870,0.002826,60863.0,60862.0,0.71602253]
[1724149682505,0.004826,60863.0,60862.0,0.71602253]
[1724149684338,0.23102898,60863.0,60862.0,0.05880053]
[1724149684550,0.31322898,60863.0,60862.0,0.15405595]
[1724149684987,0.31322898,60863.0,60862.0,0.1333526]
[1724149685186,0.31322898,60863.0,60862.0,0.15405656]
[1724149685406,0.31322898,60863.0,60862.0,0.1333526]
[1724149685565,0.31322898,60863.0,60862.0,0.15405658]
[1724149686224,0.16582898,60863.0,60862.0,0.15405658]
[1724149686429,0.16682898,60863.0,60862.0,0.15405658]
[1724149686634,0.001826,60863.0,60862.0,0.41694558]
[1724149686786,0.001826,60863.0,60862.0,0.71602441]
[1724149687627,0.004826,60863.0,60862.0,0.71602441]
[1724149688736,0.002826,60863.0,60862.0,0.71602441]
[1724149688942,0.002826,60863.0,60862.0,0.69532043]
[1724149689158,0.002826,60863.0,60862.0,0.71602276]
[1724149689609,0.001826,60863.0,60862.0,0.71602276]
[1724149692881,0.001826,60863.0,60862.0,0.3962416]
[1724149693093,0.001826,60863.0,60862.0,0.45313421]
[1724149693094,0.004826,60863.0,60862.0,0.45313421]
[1724149696355,0.003826,60863.0,60862.0,0.45313421]
[1724149696557,0.004826,60863.0,60862.0,0.45313421]
[1724149696734,0.004826,60863.0,60862.0,0.3962416]
[1724149696940,0.070826,60863.0,60862.0,0.45313428]
[1724149697124,0.001826,60863.0,60862.0,0.45313428]
[1724149697570,0.004826,60863.0,60862.0,0.45313428]
[1724149700854,0.004826,60863.0,60862.0,0.4531343]
[1724149702255,0.001826,60863.0,60862.0,0.7160233]
[1724149702464,0.001826,60863.0,60862.0,0.7912233]
[1724149704451,0.001826,60863.0,60862.0,0.78755393]
[1724149704888,0.001826,60863.0,60862.0,0.78755389]
[1724149705646,0.001826,60863.0,60862.0,0.78650807]
[1724149706084,0.002826,60863.0,60862.0,0.78650807]
[1724149706287,0.004826,60863.0,60862.0,0.78650807]
[1724149706694,0.001826,60863.0,60862.0,0.78650807]
[1724149707689,0.001826,60863.0,60862.0,0.83584061]
[1724149708648,0.001826,60863.0,60862.0,0.77894795]
[1724149708881,0.001826,60863.0,60862.0,0.83584017]
[1724149709482,0.001826,60863.0,60862.0,0.78650763]
[1724149709644,0.001826,60863.0,60862.0,0.79555459]
[1724149710052,0.001826,60863.0,60862.0,0.79555321]
[1724149710255,0.001826,60863.0,60862.0,0.78650625]
[1724149710468,0.001826,60863.0,60862.0,0.7955532]
[1724149710676,0.001826,60863.0,60862.0,0.79555317]
[1724149711072,0.001826,60863.0,60862.0,0.78650622]
[1724149712932,0.001826,60863.0,60862.0,0.78650625]
[1724149713628,0.001826,60863.0,60862.0,1.22572458]
[1724149713830,0.001826,60863.0,60862.0,1.16077273]
[1724149714028,0.001826,60863.0,60862.0,1.25943781]
[1724149714301,0.001826,60863.0,60862.0,1.16077273]
[1724149714516,0.001826,60863.0,60862.0,1.23476396]
[1724149714670,0.001826,60863.0,60862.0,1.23476395]
[1724149714872,0.001826,60863.0,60862.0,1.49765295]
[1724149715069,0.001826,60863.0,60862.0,1.51276173]
[1724149716676,0.000826,60863.0,60862.0,1.51276173]
[1724149717081,0.000826,60863.0,60862.0,1.77565073]
[1724149717306,0.000826,60863.0,60862.0,1.89898208]
[1724149717460,0.000826,60863.0,60862.0,1.77565073]
[1724149717461,0.001826,60863.0,60862.0,1.77565073]
[1724149717667,0.001826,60863.0,60862.0,1.83249034]
[1724149718305,0.000826,60863.0,60862.0,1.83649034]
[1724149718545,0.000826,60863.0,60862.0,1.94843862]
[1724149718816,0.000826,60863.0,60862.0,2.09629546]
[1724149719022,0.000826,60863.0,60862.0,2.09628236]
[1724149719225,0.001826,60863.0,60862.0,1.94842552]
[1724149719628,0.001826,60863.0,60862.0,1.94442552]
[1724149720035,0.001826,60863.0,60862.0,1.95142552]
[1724149720447,0.000826,60863.0,60862.0,1.95142552]
[1724149720851,0.000826,60863.0,60862.0,1.95242552]
[1724149721263,0.000826,60863.0,60862.0,1.95242017]
[1724149722731,0.000826,60863.0,60862.0,1.84042017]
[1724149722967,0.000826,60863.0,60862.0,1.95242017]
[1724149723926,0.000826,60863.0,60862.0,1.95240988]
[1724149724352,0.000826,60863.0,60862.0,1.95340988]
[1724149724635,0.000826,60863.0,60862.0,1.90818281]
[1724149724835,0.000826,60863.0,60862.0,1.95340814]
[1724149725653,0.05020646,60875.0,60874.0,0.919929]
[1724149725855,0.05020646,60875.0,60874.0,1.52927579]
[1724149726055,0.05020646,60875.0,60874.0,2.01374141]
[1724149726056,0.000826,60875.0,60874.0,2.01374141]
[1724149726308,0.000826,60875.0,60874.0,1.89069087]
[1724149726501,0.000826,60875.0,60874.0,2.01366682]
[1724149726911,0.001826,60875.0,60874.0,2.01366682]
[1724149727157,0.002826,60875.0,60874.0,1.94923967]
[1724149727357,0.061278,60886.0,60885.0,0.131395]
[1724149727698,0.061278,60886.0,60885.0,0.4148842]
[1724149728013,0.064278,60886.0,60885.0,0.4148842]
[1724149728419,0.064278,60886.0,60885.0,0.394185]
[1724149728621,0.140878,60886.0,60885.0,0.15209126]
[1724149728829,0.140878,60886.0,60885.0,0.131395]
[1724149729609,0.140878,60886.0,60885.0,0.394185]
[1724149730125,0.140878,60886.0,60885.0,0.395185]
[1724149730623,0.140878,60886.0,60885.0,0.396185]
[1724149733385,0.30488098,60886.0,60885.0,0.002]
[1724149734581,0.43627398,60886.0,60885.0,0.002]
[1724149735142,0.30488098,60886.0,60885.0,0.002]
[1724149735993,0.43627398,60886.0,60885.0,0.002]
[1724149736457,0.69905998,60886.0,60885.0,0.002]
[1724149737308,0.96184598,60886.0,60885.0,0.002]
[1724149737730,0.69905998,60886.0,60885.0,0.002]
[1724149738334,0.69988598,60886.0,60885.0,0.002]
[1724149739563,0.96267198,60886.0,60885.0,0.002]
[1724149740828,1.36108252,60886.0,60885.0,0.002]
[1724149741487,1.22545798,60886.0,60885.0,0.002]
[1724149741695,0.96267198,60886.0,60885.0,0.002]
[1724149743002,0.96267198,60886.0,60885.0,0.00195886]
[1724149743207,0.131402,60882.0,60878.0,0.12964813]
[1724149743330,0.003,60879.0,60878.0,0.12964813]
[1724149743534,0.003,60879.0,60878.0,0.15034672]
[1724149743535,0.16700298,60879.0,60878.0,0.15034672]
[1724149746906,0.16800298,60879.0,60878.0,0.15134672]
[1724149747260,0.16800298,60879.0,60878.0,0.15234672]
[1724149750448,0.16800298,60879.0,60878.0,0.15325532]
[1724149751293,0.16800298,60879.0,60878.0,0.13255673]
[1724149751505,0.16800298,60879.0,60878.0,0.15325532]
[1724149753025,0.001,60879.0,60878.0,0.81889532]
[1724149753459,0.004,60879.0,60878.0,0.75799532]
[1724149753651,0.16800298,60879.0,60878.0,0.15325532]
[1724149755227,0.16800298,60879.0,60878.0,0.13255673]
[1724149755402,0.16800298,60879.0,60878.0,0.15325531]
[1724149755604,0.16800298,60879.0,60878.0,0.13255673]
[1724149755840,0.16800298,60879.0,60878.0,0.15325531]
[1724149763353,0.16882898,60879.0,60878.0,0.13255673]
[1724149763557,0.16882898,60879.0,60878.0,0.15325531]
[1724149763765,0.16882898,60879.0,60878.0,0.02360718]
[1724149763766,0.30023698,60879.0,60878.0,0.02360718]
[1724149763975,0.75432598,60879.0,60878.0,0.02360718]
[1724149764221,1.27995798,60879.0,60878.0,0.02360718]
[1724149764423,1.37995798,60879.0,60878.0,0.0029086]
[1724149765071,1.44931084,60879.0,60878.0,0.0019086]
[1724149765284,1.44931084,60879.0,60878.0,0.0009086]
[1724149765482,1.44931084,60879.0,60878.0,0.0019086]
[1724149765682,1.37895798,60879.0,60878.0,0.0019086]
[1724149765911,1.37895798,60879.0,60878.0,0.0009086]
[1724149766845,1.3947697,60879.0,60878.0,0.0019086]
[1724149767370,1.3887697,60879.0,60878.0,0.0009086]
[1724149767798,1.4147697,60879.0,60878.0,0.0029086]
[1724149778815,1.51695798,60879.0,60878.0,0.0029086]
[1724149798536,1.58734403,60879.0,60878.0,0.0029086]
[1724149801600,1.85116003,60879.0,60878.0,0.0029086]
[1724149801802,2.15316003,60879.0,60878.0,0.0029086]
[1724149802041,2.25136578,60879.0,60878.0,0.0029086]
[1724149802273,1.85316003,60879.0,60878.0,0.0029086]
[1724149802714,1.84016003,60879.0,60878.0,0.0019086]
[1724149802944,1.84616003,60879.0,60878.0,0.0029086]
[1724149803409,1.84316003,60879.0,60878.0,0.0029086]
[1724149803913,1.74316003,60879.0,60878.0,0.0029086]
[1724149804118,1.73016003,60879.0,60878.0,0.0019086]
[1724149804511,1.74416003,60879.0,60878.0,0.0019086]
[1724149804635,1.84287003,60879.0,60878.0,0.0019086]
[1724149805850,1.9175268,60879.0,60878.0,0.0019086]
[1724149806063,1.9195268,60879.0,60878.0,0.0019086]
[1724149808600,1.84287003,60879.0,60878.0,0.0019086]
[1724149809631,1.94106882,60879.0,60878.0,0.0019086]
[1724149810464,1.84287003,60879.0,60878.0,0.0019086]
[1724149811141,1.94106882,60879.0,60878.0,0.0019086]
[1724149811583,1.84287003,60879.0,60878.0,0.0019086]
[1724149811996,2.66287003,60879.0,60878.0,0.0019086]
[1724149813879,2.66387003,60879.0,60878.0,0.0019086]
[1724149814082,2.66287003,60879.0,60878.0,0.0019086]
[1724149814495,2.66587003,60879.0,60878.0,0.0019086]
[1724149815010,2.66487003,60879.0,60878.0,0.0019086]
[1724149815209,2.66287003,60879.0,60878.0,0.0019086]
[1724149817579,2.66587003,60879.0,60878.0,0.0019086]
[1724149817960,2.66287003,60879.0,60878.0,0.0019086]
[1724149818534,2.66387003,60879.0,60878.0,0.0019086]
[1724149818685,2.66287003,60879.0,60878.0,0.0019086]
[1724149820299,2.76110162,60879.0,60878.0,0.0019086]
[1724149820526,2.76410162,60879.0,60878.0,0.0019086]
[1724149820725,2.76110162,60879.0,60878.0,0.0019086]
[1724149821267,2.76210162,60879.0,60878.0,0.0019086]
[1724149821553,2.66587003,60879.0,60878.0,0.0019086]
[1724149822669,2.66287003,60879.0,60878.0,0.0019086]
[1724149823449,2.66387003,60879.0,60878.0,0.0019086]
[1724149824221,2.66287003,60879.0,60878.0,0.0019086]
[1724149825795,2.76110298,60879.0,60878.0,0.0019086]
[1724149826078,2.40357003,60879.0,60878.0,0.0019086]
[1724149826282,2.58924639,60879.0,60878.0,0.0019086]
[1724149827403,2.61380298,60879.0,60878.0,0.0019086]
[1724149827824,2.51557003,60879.0,60878.0,0.0019086]
[1724149828113,2.51657003,60879.0,60878.0,0.0019086]
[1724149829265,2.63935792,60879.0,60878.0,0.0019086]
[1724149829470,2.77945792,60879.0,60878.0,0.0019086]
[1724149829678,2.78145792,60879.0,60878.0,0.0019086]
[1724149830888,2.41023976,60879.0,60878.0,0.0019086]
[1724149831096,0.772082,60875.0,60874.0,0.0009086]
[1724149831374,0.003,60872.0,60865.0,0.0609]
[1724149831566,0.394327,60863.0,60859.0,0.0661]
[1724149831773,0.93321498,60863.0,60859.0,0.0661]
[1724149831978,1.29709998,60863.0,60859.0,0.0661]
[1724149832127,1.29609998,60863.0,60859.0,0.0661]
[1724149832999,1.29709998,60863.0,60859.0,0.0661]
[1724149833201,1.46107876,60863.0,60859.0,0.0661]
[1724149833398,1.47507876,60863.0,60859.0,0.0661]
[1724149833600,1.47507876,60863.0,60858.0,0.077]
[1724149833803,1.49107876,60863.0,60862.0,0.0019086]
[1724149835041,1.57237876,60863.0,60862.0,0.0019086]
[1724149835697,2.24526376,60863.0,60862.0,0.0019086]
[1724149835922,0.921234,60854.0,60853.0,0.079]
[1724149836133,1.54923698,60854.0,60853.0,0.079]
[1724149836344,1.29623698,60854.0,60853.0,0.079]
[1724149836995,1.29623698,60854.0,60846.0,0.0009086]
[1724149836996,0.394431,60847.0,60846.0,0.0009086]
[1724149837297,1.03338798,60847.0,60846.0,0.0009086]
[1724149838641,1.29634198,60847.0,60846.0,0.0009086]
[1724149839304,1.31034198,60847.0,60846.0,0.0009086]
[1724149840168,1.31734198,60847.0,60846.0,0.0009086]
[1724149841153,1.32718622,60847.0,60846.0,0.0009086]
[1724149844014,0.95223222,60847.0,60846.0,0.1437086]
[1724149845545,0.67943398,60847.0,60846.0,0.1437086]
[1724149846699,0.67943398,60847.0,60846.0,0.14325183]
[1724149849285,0.28500298,60847.0,60846.0,0.14325183]
[1724149849686,0.41647998,60847.0,60846.0,0.14325183]
[1724149853166,0.28500298,60847.0,60846.0,0.14325183]
[1724149855926,0.41647998,60847.0,60846.0,0.14325183]
[1724149856807,0.41730598,60847.0,60846.0,0.14325183]
[1724149859108,0.68025998,60847.0,60846.0,0.14325183]
[1724149861498,0.28582898,60847.0,60846.0,0.14325183]
[1724149861685,0.41730598,60847.0,60846.0,0.14325183]
[1724149863555,0.41730598,60847.0,60846.0,0.14275872]
[1724149868481,0.28582898,60847.0,60846.0,0.14275872]
[1724149868658,0.41730598,60847.0,60846.0,0.14275872]
[1724149869084,0.41730598,60847.0,60846.0,0.14366732]
[1724149869919,0.28582898,60847.0,60846.0,0.14366732]
[1724149870193,0.41730598,60847.0,60846.0,0.14366732]
[1724149873134,0.28582898,60847.0,60846.0,0.14366732]
[1724149873339,0.28582898,60847.0,60846.0,0.16437822]
[1724149873694,0.41730598,60847.0,60846.0,0.16437822]
[1724149874509,0.28582898,60847.0,60846.0,0.16437822]
[1724149874705,0.41730598,60847.0,60846.0,0.16437822]
[1724149875111,0.28582898,60847.0,60846.0,0.16437822]
[1724149879463,0.28582898,60847.0,60846.0,0.16398359]
[1724149879686,0.121826,60847.0,60846.0,0.16398359]
[1724149879883,0.021826,60847.0,60846.0,0.16398359]
[1724149880242,0.021826,60847.0,60846.0,0.16398345]
[1724149883955,0.121826,60847.0,60846.0,0.16398345]
[1724149884158,0.121826,60847.0,60846.0,0.16398346]
[1724149887480,0.021826,60847.0,60846.0,0.16398346]
[1724149887644,0.121826,60847.0,60846.0,0.16398346]
[1724149888075,0.41730598,60847.0,60846.0,0.02161941]
[1724149888443,0.68025998,60847.0,60846.0,0.0009086]
[1724149890266,0.80414001,60847.0,60846.0,0.0009086]
[1724149891257,0.68025998,60847.0,60846.0,0.0009086]
[1724149894285,0.94321398,60847.0,60846.0,0.0009086]
[1724149894696,0.68025998,60847.0,60846.0,0.0009086]
[1724149898205,0.68025998,60847.0,60846.0,0.02161948]
[1724149899288,0.94321398,60847.0,60846.0,0.0009086]
[1724149899816,0.94321398,60847.0,60846.0,0.02161948]
[1724149900020,0.68025998,60847.0,60846.0,0.02161948]
[1724149900195,0.68025998,60847.0,60846.0,0.0009086]
[1724149900791,0.94321398,60847.0,60846.0,0.0009086]
[1724149901546,0.68025998,60847.0,60846.0,0.0009086]
[1724149901989,0.94321398,60847.0,60846.0,0.0009086]
[1724149902755,0.68025998,60847.0,60846.0,0.1371086]
[1724149902980,0.94321398,60847.0,60846.0,0.1371086]
[1724149912413,0.68025998,60847.0,60846.0,0.1371086]
[1724149915884,0.262947,60849.0,60847.0,0.31974002]
[1724149916125,0.131475,60848.0,60847.0,0.40134002]
[1724149916324,0.4241426,60852.0,60847.0,0.31974002]
[1724149916325,0.131468,60852.0,60847.0,0.31974002]
[1724149916525,0.14123861,60853.0,60849.0,0.1478]
[1724149916735,0.131464,60853.0,60850.0,0.10381045]
[1724149916928,0.131464,60853.0,60851.0,0.02071045]
[1724149917159,0.131464,60853.0,60852.0,0.09591045]
[1724149918315,0.14124533,60854.0,60852.0,0.09590829]
[1724149918519,0.14124533,60854.0,60852.0,0.0752]
[1724149919373,0.013,60853.0,60852.0,0.0752]
[1724149919779,0.017,60853.0,60852.0,0.0762]
[1724149920136,0.013,60853.0,60852.0,0.0752]
[1724149920338,0.14124533,60854.0,60852.0,0.0752]
[1724149920546,0.14524533,60854.0,60852.0,0.0762]
[1724149920745,0.15524533,60854.0,60852.0,0.0752]
[1724149921152,0.004,60853.0,60852.0,0.0762]
[1724149921601,0.15524533,60854.0,60852.0,0.0752]
[1724149922568,0.14124533,60854.0,60852.0,0.0752]
[1724149922957,0.013,60853.0,60852.0,0.0762]
[1724149923219,0.125,60853.0,60852.0,0.0762]
[1724149923426,0.112,60853.0,60852.0,0.0762]
[1724149923630,0.243464,60853.0,60852.0,0.0762]
[1724149924037,0.40746698,60853.0,60852.0,0.001]
[1724149924239,0.40746698,60853.0,60849.0,0.081]
[1724149924240,0.262938,60851.0,60847.0,0.31974002]
[1724149924449,0.538225,60848.0,60847.0,0.31974002]
[1724149924653,1.22812798,60848.0,60847.0,0.31974002]
[1724149924901,1.32812798,60848.0,60847.0,0.31974002]
[1724149926742,1.34212798,60848.0,60847.0,0.31974002]
[1724149926892,1.40526576,60848.0,60847.0,0.31974002]
[1724149927290,1.39126494,60848.0,60847.0,0.31974002]
[1724149927672,1.55524372,60848.0,60847.0,0.32064862]
[1724149928050,1.54124372,60848.0,60847.0,0.32064862]
[1724149928275,1.49210676,60848.0,60847.0,0.32064862]
[1724149928483,1.55523558,60848.0,60847.0,0.32064862]
[1724149928686,1.50610676,60848.0,60847.0,0.32064862]
[1724149929060,1.52010676,60848.0,60847.0,0.32064862]
[1724149929453,1.569226,60848.0,60847.0,0.32064862]
[1724149929665,1.555226,60848.0,60847.0,0.32064862]
[1724149929877,1.569226,60848.0,60847.0,0.32064862]
[1724149931944,1.56921853,60848.0,60847.0,0.32064862]
[1724149933052,1.57021853,60848.0,60847.0,0.32064862]
[1724149933316,1.57221853,60848.0,60847.0,0.32064862]
[1724149933753,1.56921853,60848.0,60847.0,0.32064862]
[1724149934072,1.57021853,60848.0,60847.0,0.32064862]
[1724149934496,1.57221853,60848.0,60847.0,0.32064862]
[1724149934702,1.94221853,60848.0,60847.0,0.32064862]
[1724149934903,1.89310676,60848.0,60847.0,0.31332862]
[1724149935876,1.89010676,60848.0,60847.0,0.31332862]
[1724149936363,1.89310676,60848.0,60847.0,0.31332862]
[1724149936530,1.89010676,60848.0,60847.0,0.31332862]
[1724149938357,1.89110676,60848.0,60847.0,0.31332862]
[1724149938823,1.89010676,60848.0,60847.0,0.31332862]
[1724149939403,2.15605676,60848.0,60847.0,0.31332862]
[1724149939804,1.89010676,60848.0,60847.0,0.31332862]
[1724149940889,1.89310676,60848.0,60847.0,0.31332862]
[1724149942014,1.87910676,60848.0,60847.0,0.31332862]
[1724149942219,1.89310676,60848.0,60847.0,0.31332862]
[1724149942870,1.87910676,60848.0,60847.0,0.31332862]
[1724149943022,1.89010676,60848.0,60847.0,0.31332862]
[1724149944006,1.72612798,60848.0,60847.0,0.31332862]
[1724149945101,1.58232798,60848.0,60847.0,0.31332862]
[1724149945303,1.69432798,60848.0,60847.0,0.31332862]
[1724149948485,1.69532798,60848.0,60847.0,0.31332862]
[1724149948696,1.69432798,60848.0,60847.0,0.31332862]
[1724149948906,1.85830676,60848.0,60847.0,0.31332862]
[1724149949115,1.93580676,60848.0,60847.0,0.31332862]
[1724149949467,2.03457676,60848.0,60847.0,0.31332862]
[1724149949688,1.93580676,60848.0,60847.0,0.31332862]
[1724149950259,1.93880676,60848.0,60847.0,0.31332862]
[1724149950461,1.93580676,60848.0,60847.0,0.31332862]
[1724149951044,1.99860676,60848.0,60847.0,0.31332862]
[1724149953366,1.99943276,60848.0,60847.0,0.31332862]
[1724149954743,1.72345398,60848.0,60847.0,0.31332862]
[1724149955146,1.77265398,60848.0,60847.0,0.31332862]
[1724149955463,1.69515398,60848.0,60847.0,0.31332862]
[1724149958275,1.81462734,60848.0,60847.0,0.31332862]
[1724149958909,1.76553213,60848.0,60847.0,0.31332862]
[1724149959226,1.92951091,60848.0,60847.0,0.31332862]
[1724149959422,2.02828091,60848.0,60847.0,0.31332862]
[1724149959624,1.92951091,60848.0,60847.0,0.31332862]
[1724149964307,1.97860103,60848.0,60847.0,0.31332862]
[1724149964681,1.97862337,60848.0,60847.0,0.31332862]
[1724149965515,1.92951091,60848.0,60847.0,0.31332862]
[1724149968351,1.93051091,60848.0,60847.0,0.31332862]
[1724149968493,2.0041796,60848.0,60847.0,0.31332862]
[1724149968710,2.0061796,60848.0,60847.0,0.31332862]
[1724149968912,2.46494207,60848.0,60847.0,0.31332862]
[1724149969116,2.34216091,60848.0,60847.0,0.31332862]
[1724149969529,2.44093091,60848.0,60847.0,0.31332862]
[1724149971517,2.70388091,60848.0,60847.0,0.31332862]
[1724149971717,1.287063,60847.0,60846.0,0.0009086]
[1724149972088,2.75657691,60847.0,60846.0,0.0009086]
[1724149973450,2.77057691,60847.0,60846.0,0.0009086]
[1724149974075,2.78028786,60847.0,60846.0,0.0009086]
[1724149974457,2.90309633,60847.0,60846.0,0.0009086]
[1724149974899,2.91709633,60847.0,60846.0,0.0009086]
[1724149977525,2.79428786,60847.0,60846.0,0.0009086]
[1724149979655,2.96738786,60847.0,60846.0,0.0009086]
[1724149979862,2.79428786,60847.0,60846.0,0.0009086]
[1724149984615,2.82006304,60847.0,60846.0,0.0009086]
[1724149989004,2.55710904,60847.0,60846.0,0.0009086]
[1724149989867,2.55793504,60847.0,60846.0,0.0009086]
[1724149990080,2.93288904,60847.0,60846.0,0.0009086]
[1724149991751,1.287081,60846.0,60845.0,0.000454]
[1724149991865,1.287081,60846.0,60839.0,0.0009086]
[1724149991866,0.673846,60840.0,60839.0,0.0009086]
[1724149992071,1.83441113,60840.0,60839.0,0.0009086]
[1724149992591,2.36037913,60840.0,60839.0,0.0009086]
[1724149992802,2.75712029,60840.0,60839.0,0.0009086]
[1724149993066,2.78012029,60840.0,60839.0,0.0009086]
[1724149993273,2.79412029,60840.0,60839.0,0.0009086]
[1724149994323,2.80812029,60840.0,60839.0,0.0009086]
[1724149998420,2.72492029,60840.0,60839.0,0.0009086]
[1724149998576,2.671285,60840.0,60839.0,0.0009086]
[1724149999039,2.554285,60840.0,60839.0,0.0009086]
[1724149999244,2.24754384,60840.0,60839.0,0.1451086]
[1724149999601,2.34562263,60840.0,60839.0,0.1451086]
[1724150000602,2.34561713,60840.0,60839.0,0.1451086]
[1724150000798,2.50959591,60840.0,60839.0,0.1451086]
[1724150001881,2.41152262,60840.0,60839.0,0.1451086]
[1724150002295,2.41352262,60840.0,60839.0,0.1451086]
[1724150002624,2.41552262,60840.0,60839.0,0.0829086]
[1724150003067,2.41552262,60840.0,60839.0,0.0009086]
[1724150003430,2.55162262,60840.0,60839.0,0.0009086]
[1724150006351,2.67421423,60840.0,60839.0,0.0009086]
[1724150006574,2.53811423,60840.0,60839.0,0.0009086]
[1724150006767,2.53811423,60840.0,60839.0,0.0829086]
[1724150006974,2.42411423,60840.0,60839.0,0.0829086]
[1724150007177,2.53811423,60840.0,60839.0,0.0829086]
[1724150009361,2.41552262,60840.0,60839.0,0.0829086]
[1724150011871,2.41552262,60840.0,60839.0,0.0009086]
[1724150013115,2.57782262,60840.0,60839.0,0.0009086]
[1724150014511,2.72494512,60840.0,60839.0,0.0009086]
[1724150014729,2.72506271,60840.0,60839.0,0.0009086]
[1724150015464,2.57782262,60840.0,60839.0,0.0009086]
[1724150016146,2.84080662,60840.0,60839.0,0.0009086]
[1724150016327,2.57782262,60840.0,60839.0,0.0009086]
[1724150018382,2.84080662,60840.0,60839.0,0.0009086]
[1724150020557,2.57782262,60840.0,60839.0,0.0009086]
[1724150021121,2.84080662,60840.0,60839.0,0.0009086]
[1724150021544,2.70150662,60840.0,60839.0,0.0009086]
[1724150021718,2.30352262,60840.0,60839.0,0.0802086]
[1724150021930,2.41552262,60840.0,60839.0,0.1448086]
[1724150024997,1.45676862,60840.0,60839.0,0.1448086]
[1724150025200,1.56876862,60840.0,60839.0,0.1448086]
[1724150027214,2.28876862,60840.0,60839.0,0.1448086]
[1724150033455,2.12478984,60840.0,60839.0,0.1448086]
[1724150041216,2.12578984,60840.0,60839.0,0.1448086]
[1724150041441,2.12778984,60840.0,60839.0,0.1448086]
[1724150044671,2.12778984,60840.0,60839.0,0.0802086]
[1724150044833,2.12478984,60840.0,60839.0,0.0802086]
[1724150045146,2.28876862,60840.0,60839.0,0.0802086]
[1724150045347,2.43612868,60840.0,60839.0,0.1418086]
[1724150045552,2.28876862,60840.0,60839.0,0.1418086]
[1724150045735,2.43612868,60840.0,60839.0,0.1418086]
[1724150045935,2.43712868,60840.0,60839.0,0.1418086]
[1724150046423,2.4371142,60840.0,60839.0,0.1418086]
[1724150047048,2.4391142,60840.0,60839.0,0.1418086]
[1724150049151,2.4361142,60840.0,60839.0,0.1418086]
[1724150050475,2.4391142,60840.0,60839.0,0.1418086]
[1724150051098,2.4391142,60840.0,60839.0,0.0802086]
[1724150052702,2.46488994,60840.0,60839.0,0.0802086]
[1724150053269,2.46188994,60840.0,60839.0,0.0802086]
[1724150054086,2.6823842,60840.0,60839.0,0.0009086]
[1724150054495,2.97114446,60840.0,60839.0,0.0009086]
[1724150055681,2.97114511,60840.0,60839.0,0.0009086]
[1724150056086,2.82864511,60840.0,60839.0,0.0009086]
[1724150057865,2.82464511,60840.0,60839.0,0.0009086]
[1724150058077,2.82464511,60840.0,60839.0,0.0792086]
[1724150058484,2.82864511,60840.0,60839.0,0.0792086]
[1724150059977,3.00174511,60840.0,60839.0,0.0792086]
[1724150060100,2.82464511,60840.0,60839.0,0.0792086]
[1724150060305,2.82864937,60840.0,60839.0,0.0792086]
[1724150061214,2.82364937,60840.0,60839.0,0.0792086]
[1724150062032,2.82664937,60840.0,60839.0,0.0792086]
[1724150062231,2.82464937,60840.0,60839.0,0.0792086]
[1724150062443,2.79887311,60840.0,60839.0,0.0792086]
[1724150063452,2.79787311,60840.0,60839.0,0.0792086]
[1724150063658,2.79887311,60840.0,60839.0,0.0792086]
[1724150064890,2.80087311,60840.0,60839.0,0.0792086]
[1724150065497,2.80287311,60840.0,60839.0,0.0792086]
[1724150065878,2.80287311,60840.0,60839.0,0.0009086]
[1724150066084,2.80087311,60840.0,60839.0,0.0009086]
[1724150067320,2.65352262,60840.0,60839.0,0.0009086]
[1724150069455,2.65052262,60840.0,60839.0,0.0009086]
[1724150070045,2.65352262,60840.0,60839.0,0.0009086]
[1724150070647,2.65052262,60840.0,60839.0,0.0009086]
[1724150071815,2.65052262,60840.0,60839.0,0.0674086]
[1724150071969,2.65052262,60840.0,60839.0,0.1498086]
[1724150072594,2.01278984,60840.0,60839.0,0.1498086]
[1724150072809,2.12478984,60840.0,60839.0,0.1498086]
[1724150085552,2.12578984,60840.0,60839.0,0.1498086]
[1724150085728,2.12578984,60840.0,60839.0,0.0833086]
[1724150087155,2.12578984,60840.0,60839.0,0.0009086]
[1724150087356,2.28976862,60840.0,60839.0,0.0009086]
[1724150087857,2.29176862,60840.0,60839.0,0.0009086]
[1724150088054,2.78295052,60840.0,60839.0,0.0009086]
[1724150088283,2.63545262,60840.0,60839.0,0.0009086]
[1724150090170,2.73422262,60840.0,60839.0,0.0009086]
[1724150095363,2.65352262,60840.0,60839.0,0.0009086]
[1724150096524,2.67352262,60840.0,60839.0,0.0009086]
[1724150098717,2.67452262,60840.0,60839.0,0.0009086]
[1724150099630,2.67352262,60840.0,60839.0,0.0009086]
[1724150103905,2.67452262,60840.0,60839.0,0.0009086]
[1724150104107,2.67352262,60840.0,60839.0,0.0009086]
[1724150106164,3.08300662,60840.0,60839.0,0.0009086]
[1724150106396,3.08300662,60840.0,60827.0,0.0009086]
[1724150106397,0.001,60829.0,60827.0,0.0009086]
[1724150106606,0.36689913,60828.0,60827.0,0.0009086]
[1724150106818,2.01104313,60828.0,60827.0,0.0009086]
[1724150107009,2.00804313,60828.0,60827.0,0.0009086]
[1724150107201,2.17202191,60828.0,60827.0,0.0009086]
[1724150107538,2.69912791,60828.0,60827.0,0.0009086]
[1724150107752,2.70112791,60828.0,60827.0,0.0009086]
[1724150108163,2.84846913,60828.0,60827.0,0.0009086]
[1724150108564,2.84446913,60828.0,60827.0,0.0009086]
[1724150108778,2.71916913,60828.0,60827.0,0.0009086]
[1724150109035,2.72116913,60828.0,60827.0,0.0009086]
[1724150109266,2.57082791,60828.0,60827.0,0.0009086]
[1724150109393,2.59455564,60828.0,60827.0,0.0009086]
[1724150109825,2.33151964,60828.0,60827.0,0.0009086]
[1724150110888,2.30851964,60828.0,60827.0,0.0009086]
[1724150111772,2.30951964,60828.0,60827.0,0.0009086]
[1724150111971,2.31151964,60828.0,60827.0,0.0009086]
[1724150113580,2.30951964,60828.0,60827.0,0.0009086]
[1724150113782,2.31151964,60828.0,60827.0,0.0009086]
[1724150115736,2.30851964,60828.0,60827.0,0.0009086]
[1724150116320,2.31151964,60828.0,60827.0,0.0009086]
[1724150117263,2.64295564,60828.0,60827.0,0.0009086]
[1724150117491,2.66595564,60828.0,60827.0,0.0009086]
[1724150120310,2.83925564,60828.0,60827.0,0.0009086]
[1724150120508,2.66595564,60828.0,60827.0,0.0009086]
[1724150121892,2.74855564,60828.0,60827.0,0.0009086]
[1724150122595,2.74855564,60828.0,60818.0,0.009086]
[1724150122596,1.394607,60819.0,60818.0,0.009086]
[1724150122797,2.36898813,60819.0,60818.0,0.009086]
[1724150123004,2.46702594,60819.0,60818.0,0.009086]
[1724150123349,2.36898813,60819.0,60818.0,0.009086]